Cogmind - Beta 13 @@@ ROGUE MODE // 2024.05.21 @ 22:09:56 Player: Johnny5001 Result: Destroyed by M Guard with Advanced Micro-nuke Launcher Performance ------------- Evolutions (9) 4500 Regions Visited (23) 4600 Robots Destroyed (83) 415 Value Destroyed (3455) 3455 Prototype IDs (38) 760 Alien Tech Used (2) 400 Bonus (10915) 10915 TOTAL SCORE: 25045 Bonus ------- High Alert Combat Kills 80 Follower Combat Kills 3165 Awakened Behemoth Slayer 1000 Met Imprinter 300 Was Imprinted 300 Destroyed Z-Imprinter 1000 Met Zhirov 300 Met Warlord at Base 500 MAIN.C Attacked Warlord 500 Acquired SGEMP 2000 Delivered SGEMP 2000 Friendly Fire -230 Cogmind --------- Core Integrity 0/1600 Matter 234/300 Energy 95/100 System Corruption 36% Temperature Cool (9) Movement Walking (120) Location -1/Command Parts ------- > --- POWER (2) -------- (None) > --- PROPULSION (5) --- Myomer Leg > --- UTILITY (15) ----- Advanced Hacking Suite > --- WEAPON (3) ------- (None) > --- INVENTORY (5) ---- Myomer Leg Myomer Leg Peak State ------------ > --- POWER ------------ Vortex Chain Reactor > --- PROPULSION ------- Advanced Myomer Leg Advanced Myomer Leg Advanced Myomer Leg Enhanced Biometal Leg High-density Centrium Leg > --- UTILITY ---------- Medium Storage Unit Improved Phase Shifter AEGIS Remote Shield Improved Hacking Suite Advanced Hacking Suite Improved System Shield Ghost Barrier Wardrone Bay > --- WEAPON ----------- Multirail Linear Accelerator CR-A16's Behemoth Slayer > --- INVENTORY -------- Myomer Leg Myomer Leg Biometal Leg Advanced Heat Sink Improved Propulsion Shielding Transdimensional Reconstructor Railgun Heavy Gauss Cannon Plasma Cutter [Rating: 246] Favorites ----------- Power Vortex Chain Reactor Engine Ion Engine Power Core Micro Fission Core Reactor Vortex Chain Reactor Propulsion Flexi-carbon Leg Treads Light Treads Leg Flexi-carbon Leg Wheel Centrium Wheel Hover Unit Zionite Glidesys I Utility Medium Storage Unit Device Wardrone Bay Storage Medium Storage Unit Processor Enhanced Optical Array Hackware Improved Hacking Suite Protection Light Armor Plating Weapon CR-A16's Behemoth Slayer Energy Gun Tesla Rifle Energy Cannon Enhanced Nova Cannon Ballistic Gun Railgun Ballistic Cannon Heavy Gauss Cannon Launcher Heavy Missile Launcher Special Weapon Plasma Cutter Piercing Weapon CR-A16's Behemoth Slayer Build | -11 -10 -10 -9 -9 -7 -7 -6 -6 -5 -5 -5 -5 -4 -4 -4 -4 -4 -3 -3 -2 -2 -1 -1 ------- Run | Yrd Mat Min Mat Min Zio Dee Pro Fac Fac Upp Upp War Pro Fac Upp Upp Zhi Pro Res Res Tes Acc Com Slots Evolved 18 | . . . 2 . . . . 6 2 . . . . 2 . . . . 2 2 . 2 . Power 1 | . . . . . . . . 1 . . . . . . . . . . . . . . . Propulsion 3 | . . . 1 . . . . 1 . . . . . 1 . . . . . . . . . Utility 13 | . . . 1 . . . . 4 1 . . . . 1 . . . . 2 2 . 2 . Weapon 1 | . . . . . . . . . 1 . . . . . . . . . . . . . . Parts Attached 186 | 8 . 3 9 2 6 25 9 11 17 12 9 9 8 3 4 . 9 2 5 2 13 3 17 Power 15 | 1 . 1 1 1 . 4 1 1 1 1 1 1 . . . . . . . . . . 1 Engine 6 | 1 . . . 1 . 1 . 1 1 . 1 . . . . . . . . . . . . Core 3 | . . 1 1 . . . . . . 1 . . . . . . . . . . . . . Reactor 6 | . . . . . . 3 1 . . . . 1 . . . . . . . . . . 1 Propulsion 50 | 3 . . 3 . 1 5 1 1 3 2 3 5 6 1 2 . 4 2 1 . 2 . 5 Treads 1 | 1 . . . . . . . . . . . . . . . . . . . . . . . Leg 42 | 2 . . 3 . 1 4 1 1 3 1 3 3 4 . 2 . 4 2 1 . 2 . 5 Wheel 6 | . . . . . . . . . . 1 . 2 2 1 . . . . . . . . . Hover 1 | . . . . . . 1 . . . . . . . . . . . . . . . . . Flight . | . . . . . . . . . . . . . . . . . . . . . . . . Utility 55 | 2 . . 3 . . 10 3 3 6 6 2 1 . 1 . . 5 . 2 2 3 2 4 Device 22 | 1 . . . . . 5 1 2 1 2 . 1 . . . . 2 . . 1 2 1 3 Storage 11 | 1 . . 1 . . 2 . 1 1 2 . . . . . . 2 . 1 . . . . Processor 1 | . . . . . . . . . . 1 . . . . . . . . . . . . . Hackware 8 | . . . . . . . 1 . 3 . . . . 1 . . . . 1 1 . 1 . Protection 13 | . . . 2 . . 3 1 . 1 1 2 . . . . . 1 . . . 1 . 1 Artifact . | . . . . . . . . . . . . . . . . . . . . . . . . Weapon 66 | 2 . 2 2 1 5 6 4 6 7 3 3 2 2 1 2 . . . 2 . 8 1 7 Energy Gun 10 | 2 . 2 . . . 3 . . . . 1 1 . . . . . . . . 1 . . Energy Cannon 1 | . . . . . . . . . . . . . . . . . . . . . . . 1 Ballistic Gun 24 | . . . 2 . 1 3 2 4 3 . 1 . . . 2 . . . 1 . 2 . 3 Ballistic Cannon 10 | . . . . . . . . 1 1 2 1 . 1 1 . . . . 1 . . . 2 Launcher 4 | . . . . 1 1 . . . 1 1 . . . . . . . . . . . . . Special Weapon 7 | . . . . . 2 . . . . . . 1 . . . . . . . . 3 . 1 Impact Weapon . | . . . . . . . . . . . . . . . . . . . . . . . . Slashing Weapon . | . . . . . . . . . . . . . . . . . . . . . . . . Piercing Weapon 10 | . . . . . 1 . 2 1 2 . . . 1 . . . . . . . 2 1 . Special Melee Weapon . | . . . . . . . . . . . . . . . . . . . . . . . . Unidentified Prototypes 27 | . . . . . . 11 . 2 . . . 3 . 1 . . 5 . . . 4 . 1 Corrupted Parts 1 | . . . . . . . . . . . . . . . . . . . . . . . 1 System Corruption 4 | . . . . . . . . . . . . . . . . . . . . . . . 4 Parts Lost 41 | . . 3 . . . . 2 . 5 6 4 . . . . . . . . . . . 21 Power 8 | . . 1 . . . . 1 . 3 . 1 . . . . . . . . . . . 2 Propulsion 7 | . . . . . . . . . . 2 . . . . . . . . . . . . 5 Utility 14 | . . . . . . . 1 . 2 2 1 . . . . . . . . . . . 8 Weapon 12 | . . 2 . . . . . . . 2 2 . . . . . . . . . . . 6 Highest Loss Streak 16 | . . 3 . . . . 2 . 2 2 1 . . . . . . . . . . . 16 To Critical Strikes . | . . . . . . . . . . . . . . . . . . . . . . . . Average Slot Usage (%) 78 | . 100 97 100 100 100 99 99 92 91 87 94 67 52 57 57 57 57 57 58 65 65 68 56 Engine 2 | . 14 1 . 3 11 3 . 5 4 . 2 6 . . . . . . . . . . . Core 1 | . . 11 11 7 . . . . . 4 3 . . . . . . . . . . . . Reactor 3 | . . . . . . 7 10 6 2 . . 1 5 5 5 5 5 5 4 4 4 4 3 Leg 24 | . 28 28 33 33 33 33 32 25 23 19 19 19 22 21 21 21 22 26 23 21 21 20 17 Wheel 1 | . . . . . . . . . . 2 3 3 . 5 5 5 3 . . . . . . Device 8 | . 14 14 11 11 11 18 11 13 10 8 5 4 5 5 5 5 4 5 4 8 8 12 7 Storage 6 | . 14 14 11 11 11 11 11 13 10 6 11 3 . . . . . . 2 4 4 4 3 Hackware 6 | . . . . . . . 8 6 13 17 17 5 . 5 5 5 5 5 7 13 13 16 13 Protection 3 | . . . 11 11 11 3 2 6 4 5 4 1 . . . . . . . . . . 1 Energy Gun 1 | . 28 26 9 . . . . . . . 1 5 3 . . . . . . . . . . Ballistic Gun 6 | . . . 12 11 11 10 10 6 11 5 3 5 5 5 5 5 5 5 4 4 4 4 3 Ballistic Cannon 2 | . . . . . . . . 5 1 . 7 3 1 5 5 5 5 5 4 4 4 4 2 Launcher 1 | . . . . 11 1 11 7 . . 4 . . . . . . . . . . . . . Piercing Weapon 3 | . . . . . 8 . 3 . 3 5 3 . 5 5 5 5 5 5 4 4 1 3 3 Naked Turns . | . . . . . . . . . . . . . . . . . . . . . . . . Heaviest Build 133 | 15 15 15 25 25 30 34 34 67 70 58 62 96 100 104 105 105 105 105 116 118 131 133 133 Greatest Support 152 | 20 20 20 30 30 30 72 72 87 92 59 74 85 85 70 70 70 140 148 148 148 152 152 152 Greatest Overweight (x) 6 | 2 . . . . . 1 . . . 1 3 5 6 1 1 1 1 . . . . . . Average Overweight (x) . | . . . . . . . . . . . . 2 1 1 1 1 . . . . . . . Largest Inventory Capacity 10 | 8 8 8 10 10 10 10 10 10 10 10 10 10 5 5 5 5 5 5 10 10 10 10 10 Average Capacity 8 | 7 8 8 9 10 10 10 10 10 10 10 10 6 5 5 5 5 5 5 8 10 10 10 9 Most Carried 10 | 7 8 8 10 10 10 10 10 10 10 10 10 9 5 5 5 5 5 5 10 9 10 10 10 Average Carried 7 | 4 7 7 9 9 9 10 9 8 9 9 9 6 4 3 5 5 4 5 7 8 9 7 7 Final Capacity 10 | 8 8 8 10 10 10 10 10 10 10 10 10 5 5 5 5 5 5 5 10 10 10 10 5 Final Carried 10 | 7 8 8 10 10 10 10 10 10 10 10 9 5 5 5 5 5 5 5 10 8 10 10 2 Class Distribution -------------------- 46% | Hacker-Mutant 24% | Scavenger-Mutant 17% | Mutant 4% | Hacker-Tank Dominant Class ---------------- Mutant | -10/Materials Mutant | -10/Mines Scavenger-Mutant | -9/Materials Scavenger-Mutant | -9/Mines Scavenger-Mutant | -7/Zion Scavenger-Mutant | -7/Deep Caves Mutant | -6/Proximity Caves Scavenger-Mutant | -6/Factory Hacker-Mutant | -5/Factory Hacker-Mutant | -5/Upper Caves Hacker-Mutant | -5/Upper Caves Scavenger-Gunner | -5/Warlord Mutant | -4/Proximity Caves Hacker-Mutant | -4/Factory Hacker-Mutant | -4/Upper Caves Hacker-Mutant | -4/Upper Caves Hacker-Mutant | -4/Zhirov Hacker-Mutant | -3/Proximity Caves Hacker-Mutant | -3/Research Hacker-Mutant | -2/Research Hacker-Tank | -2/Testing Hacker-Mutant | -1/Access Hacker-Mutant | -1/Command Resources | -11 -10 -10 -9 -9 -7 -7 -6 -6 -5 -5 -5 -5 -4 -4 -4 -4 -4 -3 -3 -2 -2 -1 -1 ----------- Run | Yrd Mat Min Mat Min Zio Dee Pro Fac Fac Upp Upp War Pro Fac Upp Upp Zhi Pro Res Res Tes Acc Com Matter Collected 3682 | 197 83 20 171 10 50 284 239 39 508 570 491 50 193 30 40 . 100 20 20 50 218 64 235 Remotely . | . . . . . . . . . . . . . . . . . . . . . . . . Salvage Created 3446 | 18 197 129 349 . . 91 261 23 683 452 248 . 283 . 90 21 288 . . . 35 . 278 Parts 190 | 4 13 9 20 . . 9 20 1 47 18 9 . 12 . 7 1 4 . . . 3 . 13 Haulers Intercepted . | . . . . . . . . . . . . . . . . . . . . . . . . Recyclers Shooed 2 | . . . . . . . . . . . . . . . . . . . . . . . 2 Parts Field Recycled . | . . . . . . . . . . . . . . . . . . . . . . . . Retrieved Matter . | . . . . . . . . . . . . . . . . . . . . . . . . Parts Self-Destructed 205 | . . . . . . . 16 . . 12 6 . 60 . 42 27 2 40 . . . . . Prevented 4 | . . . . . . . . . . 2 2 . . . . . . . . . . . . Kills | -11 -10 -10 -9 -9 -7 -7 -6 -6 -5 -5 -5 -5 -4 -4 -4 -4 -4 -3 -3 -2 -2 -1 -1 ------- Run | Yrd Mat Min Mat Min Zio Dee Pro Fac Fac Upp Upp War Pro Fac Upp Upp Zhi Pro Res Res Tes Acc Com Combat Hostiles Destroyed 74 | . 6 4 8 . . 4 6 1 14 16 6 . 4 . 1 1 . . . . . . 3 Melee 8 | . . . . . . . 1 . 5 . . . 1 . . 1 . . . . . . . Guns 24 | . 4 4 8 . . . . . 4 1 1 . 1 . . . . . . . . . 1 Cannons 10 | . . . . . . . . 1 . 2 4 . 1 . . . . . . . . . 2 AOE 28 | . 1 . . . . 4 5 . 5 13 . . . . . . . . . . . . . Classes Destroyed 17 | 1 2 . 1 . . 2 3 . 5 1 . . 2 . . . . . . . . . . Worker 3 | . . . . . . . . . 2 . . . . . . . . . . . . . 1 Tunneler 2 | 1 . . . . . . . . 1 . . . . . . . . . . . . . . Recycler 1 | . . . . . . . . . . . . . . . . . . . . . . . 1 Minesweeper 1 | . . . . . . . . . . 1 . . . . . . . . . . . . . Operator 3 | . . . . . . . . . 2 . . . . . . . . . . . 1 . . Drone 2 | . . . . . . . 2 . . . . . . . . . . . . . . . . Watcher 1 | . . . . . . . . . 1 . . . . . . . . . . . . . . Swarmer 17 | . 3 2 . . . . 2 . 7 2 . . . . . 1 . . . . . . . Saboteur 1 | . . . . . . . . . . . . . 1 . . . . . . . . . . Grunt 28 | . 3 2 7 . . . . . 3 9 4 . . . . . . . . . . . . Duelist 1 | . . . . . . . . . 1 . . . . . . . . . . . . . . Sentry 5 | . . . 1 . . . . . . 2 . . . . . . . . . . . . 2 Hunter 2 | . . . . . . . . . 1 1 . . . . . . . . . . . . . Programmer 10 | . . . . . . . 1 1 2 2 1 . 2 . . . . . . . . . 1 Behemoth 4 | . . . . . . . 1 . . . 1 . 1 . 1 . . . . . . . . Z-Light 2 | . . . . . . 2 . . . . . . . . . . . . . . . . . Packrat 1 | . . . . . . . . . . . . . 1 . . . . . . . . . . Assembled 2 | . . . . . . 2 . . . . . . . . . . . . . . . . . Best Kill Streak 8 | 1 3 2 4 . . 2 3 1 8 7 4 . 2 . 1 1 . . . . 1 . 2 Combat Bots Only 7 | . 3 2 4 . . 2 3 1 5 7 4 . 2 . 1 1 . . . . . . 1 Max Kills in Single Turn 3 | 1 1 1 1 . . 2 1 1 3 2 1 . 1 . 1 1 . . . . 1 . 1 Gunslinging . | . . . . . . . . . . . . . . . . . . . . . . . . Exploded 3 | . 1 . . . . 2 1 . 3 2 . . . . . . . . . . . . . Melee 1 | . . . . . . . 1 . 1 . . . 1 . . 1 . . . . . . . Uniques/NPCs Destroyed 1 | . . . . . . 1 . . . . . . . . . . . . . . . . . Z-Imprinter (-7/Deep Caves) Combat | -11 -10 -10 -9 -9 -7 -7 -6 -6 -5 -5 -5 -5 -4 -4 -4 -4 -4 -3 -3 -2 -2 -1 -1 -------- Run | Yrd Mat Min Mat Min Zio Dee Pro Fac Fac Upp Upp War Pro Fac Upp Upp Zhi Pro Res Res Tes Acc Com Hostile Shots Fired 838 | . 26 29 41 . . 5 46 6 133 100 57 . 20 2 12 . . . 24 3 20 16 298 Missed 315 | . 9 10 17 . . 2 17 1 37 42 16 . 3 . 3 . . . 12 . 7 10 129 Damage Taken 10302 | . 192 224 288 . . 83 727 74 1496 1193 781 . 364 50 236 . . . 125 153 210 79 4027 Core 2146 | . 38 59 32 . . . 160 43 143 104 62 . . . . . . . . . . . 1505 Absorbed by Shields 1880 | . . . . . . . . . 150 51 . . . . . . . . . . 160 76 1443 Redirected to Shielding 108 | . . . 5 . . . . . . . . . . . . . . . . . . . 103 Ignored by Resistances 68 | . . . . . . . . . . . 68 . . . . . . . . . . . . Regen/Repaired (Parts) 104 | . . . . . . . . . . . . 104 . . . . . . . . . . . Core Remaining (%) 84 | 100 . 61 . . . . 52 94 . . . . 69 . . . . 100 100 . 100 . . Volleys Fired 203 | 1 13 12 19 . . 7 7 10 27 47 26 . 5 . . . . . . . 7 1 21 Largest 3 | 2 2 2 2 . . 2 2 2 3 2 3 . 2 . . . . . . . 3 2 2 Hottest 148 | 80 80 105 105 . . 72 72 86 111 86 148 . 83 . . . . . . . 126 111 120 Shots Fired 346 | 2 26 18 38 . . 9 12 15 56 63 46 . 11 . . . . . . . 16 2 32 Gun 222 | 2 26 18 38 . . 4 7 5 48 27 18 . 6 . . . . . . . 7 1 15 Cannon 76 | . . . . . . . . 10 5 3 28 . 5 . . . . . . . 7 1 17 Launcher 46 | . . . . . . 5 5 . 3 33 . . . . . . . . . . . . . Special 2 | . . . . . . . . . . . . . . . . . . . . . 2 . . Kinetic 239 | . . . 27 . . 4 7 15 53 30 44 . 11 . . . . . . . 14 2 32 Thermal 27 | . . 14 11 . . . . . . . . . . . . . . . . . 2 . . Explosive 46 | . . . . . . 5 5 . 3 33 . . . . . . . . . . . . . Electromagnetic 34 | 2 26 4 . . . . . . . . 2 . . . . . . . . . . . . Robot Hit Streak 19 | 1 11 5 8 . . 3 2 6 9 19 8 . 3 . . . . . . . 4 1 10 Robot Miss Streak 5 | 1 2 4 4 . . 2 5 1 2 3 4 . 3 . . . . . . . 3 4 2 Penetration Max 2 | . . . . . . . . . 2 . . . . . . . . . . . . . 1 Secondary Targets 2 | . 1 . . . . . . . . 1 . . . . . . . . . . . . . Max Gunslinging Chain 1 | . 1 . . . . . . . . 1 . . . . . . . . . . . . . Shots Hit Robots 238 | 1 18 11 21 . . 2 12 7 48 41 27 . 7 . 1 1 5 . . . 6 2 28 Core Hits 151 | 1 7 5 14 . . 6 11 1 31 41 9 . 3 . . 1 4 . . . 3 1 13 Critical Kills 9 | . . . . . . . . . 7 1 . . . . . . . . . . . . 1 Critical Parts Destroyed 8 | . . . . . . . . . 5 2 . . . . . . . . . . . . 1 Critical Strikes 30 | . . . . . . . 2 . 15 3 1 . 1 . . 1 2 . . . 1 . 4 Destroy 17 | . . . . . . . . . 12 3 . . . . . . . . . . . . 2 Blast 2 | . . . . . . . . . . . 1 . . . . . . . . . . . 1 Impale 11 | . . . . . . . 2 . 3 . . . 1 . . 1 2 . . . 1 . 1 Melee Attacks 59 | . . . . . 1 . 13 1 13 2 1 . 5 . 1 4 5 . . . 1 . 12 Impact . | . . . . . . . . . . . . . . . . . . . . . . . . Slashing . | . . . . . . . . . . . . . . . . . . . . . . . . Piercing 59 | . . . . . 1 . 13 1 13 2 1 . 5 . 1 4 5 . . . 1 . 12 Sneak Attacks 6 | . . . . . . . . . 1 1 . . 1 . . . . . . . 1 . 2 Combat Hostiles . | . . . . . . . . . . . . . . . . . . . . . . . . Follow-up Attacks . | . . . . . . . . . . . . . . . . . . . . . . . . Damage Inflicted 8740 | 13 302 135 308 . . 393 773 194 1249 2586 787 . 248 . . 48 332 . . . 269 54 1049 Guns 2201 | 13 255 135 308 . . 43 21 95 474 208 192 . 54 . . . . . . . 16 18 369 Cannons 1652 | . . . . . . . . 99 63 92 595 . 103 . . . . . . . 167 36 497 Explosions 3364 | . 47 . . . . 350 415 . 363 2189 . . . . . . . . . . . . . Melee 1523 | . . . . . . . 337 . 349 97 . . 91 . . 48 332 . . . 86 . 183 Ramming . | . . . . . . . . . . . . . . . . . . . . . . . . Kinetic 3397 | . . . 255 . . 43 21 194 537 300 787 . 157 . . . . . . . 183 54 866 Thermal 222 | . 47 122 53 . . . . . . . . . . . . . . . . . . . . Explosive 3317 | . . . . . . 350 415 . 363 2189 . . . . . . . . . . . . . Electromagnetic 281 | 13 255 13 . . . . . . . . . . . . . . . . . . . . . Impact . | . . . . . . . . . . . . . . . . . . . . . . . . Slashing . | . . . . . . . . . . . . . . . . . . . . . . . . Piercing 1523 | . . . . . . . 337 . 349 97 . . 91 . . 48 332 . . . 86 . 183 Highest Corruption 36 | . . . . . . . . . 5 5 1 1 1 . . . . . . . . 1 36 Average Corruption 2 | . . . . . . . . . 4 4 1 1 1 . . . . . . . . 1 4 Corruption Purged 5 | . . . . . . . . . . 5 . . . . . . . . . . . . . Corruption Blocked . | . . . . . . . . . . . . . . . . . . . . . . . . Effects 22 | . . . . . . . . . 4 5 . 1 3 . . . . . . . . 1 8 Message Errors 3 | . . . . . . . . . . 1 . . 1 . . . . . . . . . 1 Matter Fused 5 | . . . . . . . . . 1 . . . 1 . . . . . . . . 1 2 Energy Discharges 1 | . . . . . . . . . 1 . . . . . . . . . . . . . . Parts Rejected 1 | . . . . . . . . . . . . . . . . . . . . . . . 1 Data Loss (minor) 4 | . . . . . . . . . 2 1 . 1 . . . . . . . . . . . Data Loss (major) 2 | . . . . . . . . . . 1 . . . . . . . . . . . . 1 Misfires 1 | . . . . . . . . . . . . . 1 . . . . . . . . . . Alerts 2 | . . . . . . . . . . 2 . . . . . . . . . . . . . Misdirections 1 | . . . . . . . . . . . . . . . . . . . . . . . 1 Weapon Failures 2 | . . . . . . . . . . . . . . . . . . . . . . . 2 Overload Shots . | . . . . . . . . . . . . . . . . . . . . . . . . Overflow Damage 654 | . . . . . . . 104 9 17 162 14 . 175 . . . 162 . . . 11 . . Projectiles 34 | . . . . . . . . 9 . . 14 . . . . . . . . . 11 . . Explosions 142 | . . . . . . . 64 . 12 66 . . . . . . . . . . . . . Melee 478 | . . . . . . . 40 . 5 96 . . 175 . . . 162 . . . . . . Knockbacks 14 | . . . . . . . . 2 4 . 2 . . . . . . . . . 3 1 2 Impact . | . . . . . . . . . . . . . . . . . . . . . . . . Kinetic 12 | . . . . . . . . 2 2 . 2 . . . . . . . . . 3 1 2 Secondary 2 | . . . . . . . . . 2 . . . . . . . . . . . . . . Self-Inflicted Damage 65 | . . . . . . . . . . 65 . . . . . . . . . . . . . Shots 2 | . . . . . . . . . . 2 . . . . . . . . . . . . . Rammed . | . . . . . . . . . . . . . . . . . . . . . . . . Targets Rammed . | . . . . . . . . . . . . . . . . . . . . . . . . Kicked . | . . . . . . . . . . . . . . . . . . . . . . . . Crushed . | . . . . . . . . . . . . . . . . . . . . . . . . Highest Temperature 314 | 18 117 102 90 . . 12 304 207 186 39 314 . 26 . . . . . . . . . . Average Temperature 58 | 12 38 36 31 . . 7 85 58 35 12 82 . 17 . . . . . . . . . . Received Heat Transfer 1901 | . 93 102 99 . . 27 428 . 72 159 582 . 33 9 9 . . . . . 9 . 279 Siege Activations . | . . . . . . . . . . . . . . . . . . . . . . . . Robots Corrupted 1 | . 1 . . . . . . . . . . . . . . . . . . . . . . Combat Hostiles 1 | . 1 . . . . . . . . . . . . . . . . . . . . . . Parts Fried 1 | . 1 . . . . . . . . . . . . . . . . . . . . . . Impact Corruptions . | . . . . . . . . . . . . . . . . . . . . . . . . Robots Melted . | . . . . . . . . . . . . . . . . . . . . . . . . Combat Hostiles . | . . . . . . . . . . . . . . . . . . . . . . . . Parts Melted . | . . . . . . . . . . . . . . . . . . . . . . . . Heat Transferred 398 | . . 274 124 . . . . . . . . . . . . . . . . . . . . Parts Sabotaged . | . . . . . . . . . . . . . . . . . . . . . . . . Parts Stolen . | . . . . . . . . . . . . . . . . . . . . . . . . Parts Stripped . | . . . . . . . . . . . . . . . . . . . . . . . . Power Chain Reactions 1 | . 1 . . . . . . . . . . . . . . . . . . . . . . Alert | -11 -10 -10 -9 -9 -7 -7 -6 -6 -5 -5 -5 -5 -4 -4 -4 -4 -4 -3 -3 -2 -2 -1 -1 ------- Run | Yrd Mat Min Mat Min Zio Dee Pro Fac Fac Upp Upp War Pro Fac Upp Upp Zhi Pro Res Res Tes Acc Com Peak Influence 733 | 5 301 187 303 84 . . . 299 530 . . . . 127 . . . . 164 164 196 733 669 Initial 468 | . 3 117 72 84 . . . 168 137 . . . . 81 . . . . 60 92 92 72 468 Average 199 | 1 124 148 157 48 . . . 252 237 . . . . 94 . . . . 121 110 126 474 579 Maximum Alert Level 3 | . 1 . 1 . . . . 1 2 . . . . . . . . . . . . 3 2 Low Security (%) 67 | 100 86 100 59 100 . . . 29 40 . . . . 100 . . . . 100 100 100 15 . Level 1 19 | . 13 . 40 . . . . 70 54 . . . . . . . . . . . . 33 . Level 2 11 | . . . . . . . . . 4 . . . . . . . . . . . . 32 100 Level 3 1 | . . . . . . . . . . . . . . . . . . . . . . 19 . Level 4 . | . . . . . . . . . . . . . . . . . . . . . . . . Level 5 . | . . . . . . . . . . . . . . . . . . . . . . . . High Security . | . . . . . . . . . . . . . . . . . . . . . . . . Max Security . | . . . . . . . . . . . . . . . . . . . . . . . . Squads Dispatched 22 | . 2 . 2 . . . . 2 5 . . . 1 1 . . . . . 1 1 4 3 Investigation 8 | . 2 . 2 . . . . 2 1 . . . . . . . . . . 1 . . . Extermination 1 | . . . . . . . . . . . . . . . . . . . . . . . 1 Reinforcement 8 | . . . . . . . . . 4 . . . . 1 . . . . . . . 2 1 Assault 4 | . . . . . . . . . . . . . 1 . . . . . . . . 2 1 Garrison 1 | . . . . . . . . . . . . . . . . . . . . . 1 . . Intercept . | . . . . . . . . . . . . . . . . . . . . . . . . Searches Triggered . | . . . . . . . . . . . . . . . . . . . . . . . . Construction Impeded 2 | . . . . . . . . . 1 . . . . . . . . . . . . 1 . Haulers Reinforced . | . . . . . . . . . . . . . . . . . . . . . . . . Active Scanning Responses . | . . . . . . . . . . . . . . . . . . . . . . . . Cargo Convoy Interrupts . | . . . . . . . . . . . . . . . . . . . . . . . . Stealth | -11 -10 -10 -9 -9 -7 -7 -6 -6 -5 -5 -5 -5 -4 -4 -4 -4 -4 -3 -3 -2 -2 -1 -1 --------- Run | Yrd Mat Min Mat Min Zio Dee Pro Fac Fac Upp Upp War Pro Fac Upp Upp Zhi Pro Res Res Tes Acc Com Distress Signals 11 | . . . 2 . . . . 1 5 . . . . . . . . . . . . 2 1 Communications Jammed 9 | . . . . . . . . . 9 . . . . . . . . . . . . . . Distress Signals 1 | . . . . . . . . . 1 . . . . . . . . . . . . . . Times Spotted 202 | . 14 5 18 . . 5 6 2 32 15 14 2 21 1 2 7 . 2 2 2 11 17 24 Peak Tracking Total 15 | . 6 3 5 . . 2 2 1 6 7 3 2 7 2 7 7 . 2 2 2 4 6 15 Tactical Retreats 17 | . 3 . . . . . . . 3 . 5 . . . 3 1 . . . . . . 2 Traps | -11 -10 -10 -9 -9 -7 -7 -6 -6 -5 -5 -5 -5 -4 -4 -4 -4 -4 -3 -3 -2 -2 -1 -1 ------- Run | Yrd Mat Min Mat Min Zio Dee Pro Fac Fac Upp Upp War Pro Fac Upp Upp Zhi Pro Res Res Tes Acc Com Traps Triggered 8 | . 1 . 1 . . . . . . . . . . . . . . . . 2 . . 4 Indirectly . | . . . . . . . . . . . . . . . . . . . . . . . . Trap Hack Attempts . | . . . . . . . . . . . . . . . . . . . . . . . . Triggered . | . . . . . . . . . . . . . . . . . . . . . . . . Disarmed . | . . . . . . . . . . . . . . . . . . . . . . . . Reprogrammed . | . . . . . . . . . . . . . . . . . . . . . . . . Reused 1 | . . . . . . . . . . . 1 . . . . . . . . . . . . Traps Extracted . | . . . . . . . . . . . . . . . . . . . . . . . . Installed 1 | . . . . . . . . . . . 1 . . . . . . . . . . . . Triggered 14 | . . . . . . . . . . 4 1 9 . . . . . . . . . . . Most Traps Carried 1 | . . . . . . . . . . 1 1 . . . . . . . . . . . . Machines | -11 -10 -10 -9 -9 -7 -7 -6 -6 -5 -5 -5 -5 -4 -4 -4 -4 -4 -3 -3 -2 -2 -1 -1 ---------- Run | Yrd Mat Min Mat Min Zio Dee Pro Fac Fac Upp Upp War Pro Fac Upp Upp Zhi Pro Res Res Tes Acc Com Machines Disabled 9 | . . . . . . 4 . . . 4 . . . . . . . . . . 1 . . Max in Single Turn 1 | . . . . . . 1 . . . 1 . . . . . . . . . . 1 . . Garrison Access 1 | . . . . . . . . . . . . . . . . . . . . . 1 . . Machines Repaired . | . . . . . . . . . . . . . . . . . . . . . . . . Machines Dismantled 9 | . . . . . 4 . . . . . . 1 . . . . . . . . 4 . . Machines Sabotaged . | . . . . . . . . . . . . . . . . . . . . . . . . Overloaded Fab Kills . | . . . . . . . . . . . . . . . . . . . . . . . . Hacking | -11 -10 -10 -9 -9 -7 -7 -6 -6 -5 -5 -5 -5 -4 -4 -4 -4 -4 -3 -3 -2 -2 -1 -1 --------- Run | Yrd Mat Min Mat Min Zio Dee Pro Fac Fac Upp Upp War Pro Fac Upp Upp Zhi Pro Res Res Tes Acc Com Machines Accessed 41 | . 5 . 5 1 1 . . 1 3 . . 3 . . 2 1 6 1 2 2 3 5 . Terminals 16 | . 4 . 3 . . . . . 2 . . . . . . 1 . 1 1 . 1 3 . Fabricators 7 | . . . . . . . . 1 1 . . . . . . . . . . 2 1 2 . Repair Stations . | . . . . . . . . . . . . . . . . . . . . . . . . Recycling Units 2 | . 1 . 1 . . . . . . . . . . . . . . . . . . . . Scanalyzers 1 | . . . 1 . . . . . . . . . . . . . . . . . . . . Garrison Access 2 | . . . . . . . . . . . . . . . . . . . 1 . 1 . . Total Hacks 116 | . 16 . 13 1 7 . . 2 16 . . 6 . . 2 4 19 2 3 5 12 8 . Successful 86 | . 7 . 8 1 7 . . 2 10 . . 6 . . 2 4 19 2 1 2 10 5 . Failed 30 | . 9 . 5 . . . . . 6 . . . . . . . . . 2 3 2 3 . Catastrophic 3 | . . . 1 . . . . . . . . . . . . . . . 1 1 . . . Database Lockouts . | . . . . . . . . . . . . . . . . . . . . . . . . Manual 43 | . 10 . 9 . . . . . 10 . . . . . . . . . 2 4 5 3 . Terminals 60 | . 15 . 10 . . . . . 14 . . . . . . 4 . 2 2 . 8 5 . Fabricators 15 | . . . . . . . . 2 2 . . . . . . . . . . 5 3 3 . Repair Stations . | . . . . . . . . . . . . . . . . . . . . . . . . Recycling Units 2 | . 1 . 1 . . . . . . . . . . . . . . . . . . . . Scanalyzers 2 | . . . 2 . . . . . . . . . . . . . . . . . . . . Garrison Access 2 | . . . . . . . . . . . . . . . . . . . 1 . 1 . . Terminal Hacks 66 | . 4 . 4 1 7 . . . 6 . . 6 . . 2 4 19 2 . . 8 3 . Record 23 | . . . . . . . . . . . . 5 . . . 4 7 2 . . 5 . . Part Schematic 11 | . . . . . 7 . . . . . . . . . . . 4 . . . . . . Robot Schematic 1 | . 1 . . . . . . . . . . . . . . . . . . . . . . Robot Analysis 4 | . . . . . . . . . . . . . . . . . 4 . . . . . . Prototype ID Bank 5 | . 1 . . . . . . . . . . . . . . . 4 . . . . . . Open Door 7 | . . . . 1 . . . . . . . 1 . . 2 . . . . . . 3 . Level Access Points 1 | . . . . . . . . . . . . . . . . . . . . . 1 . . Branch Access Points 3 | . 1 . 1 . . . . . 1 . . . . . . . . . . . . . . Terminal Index 2 | . . . 1 . . . . . 1 . . . . . . . . . . . . . . Alert Level 2 | . . . . . . . . . 1 . . . . . . . . . . . 1 . . Unreport Threat 1 | . . . . . . . . . 1 . . . . . . . . . . . . . . Locate Traps 2 | . . . 1 . . . . . 1 . . . . . . . . . . . . . . Recall Investigation 1 | . . . . . . . . . 1 . . . . . . . . . . . . . . Zone Layout 3 | . 1 . 1 . . . . . . . . . . . . . . . . . 1 . . Fabricator Hacks 5 | . . . . . . . . 2 2 . . . . . . . . . . 1 . . . Network Status 1 | . . . . . . . . . . . . . . . . . . . . 1 . . . Load Schematic 2 | . . . . . . . . 1 1 . . . . . . . . . . . . . . Build 2 | . . . . . . . . 1 1 . . . . . . . . . . . . . . Repair Station Hacks . | . . . . . . . . . . . . . . . . . . . . . . . . Recycling Unit Hacks . | . . . . . . . . . . . . . . . . . . . . . . . . Scanalyzer 1 | . . . 1 . . . . . . . . . . . . . . . . . . . . Insert Component 1 | . . . 1 . . . . . . . . . . . . . . . . . . . . Garrison Access Hacks 1 | . . . . . . . . . . . . . . . . . . . . . 1 . . Seal Access 1 | . . . . . . . . . . . . . . . . . . . . . 1 . . Unauthorized Hacks 13 | . 3 . 3 . . . . . 2 . . . . . . . . . 1 1 1 2 . Terminals 7 | . 2 . 2 . . . . . 2 . . . . . . . . . 1 . . . . Botnet 7 | . 2 . 2 . . . . . 2 . . . . . . . . . 1 . . . . Fabricators 4 | . . . . . . . . . . . . . . . . . . . . 1 1 2 . Fabnet 4 | . . . . . . . . . . . . . . . . . . . . 1 1 2 . Repair Stations . | . . . . . . . . . . . . . . . . . . . . . . . . Recycling Units 2 | . 1 . 1 . . . . . . . . . . . . . . . . . . . . Tunnel 2 | . 1 . 1 . . . . . . . . . . . . . . . . . . . . Scanalyzers . | . . . . . . . . . . . . . . . . . . . . . . . . Garrison Access . | . . . . . . . . . . . . . . . . . . . . . . . . Data Cores Recovered . | . . . . . . . . . . . . . . . . . . . . . . . . Used . | . . . . . . . . . . . . . . . . . . . . . . . . Hacking Detections 17 | . 4 . 4 . . . . 1 3 . . . . . . . . . 2 1 2 . . Full Trace Events 2 | . . . . . . . . 1 1 . . . . . . . . . . . . . . Feedback Events . | . . . . . . . . . . . . . . . . . . . . . . . . Feedback Blocked . | . . . . . . . . . . . . . . . . . . . . . . . . Robot Schematics Acquired 5 | . 1 . . . 4 . . . . . . . . . . . . . . . . . . Robots Built . | . . . . . . . . . . . . . . . . . . . . . . . . Authchips . | . . . . . . . . . . . . . . . . . . . . . . . . Time . | . . . . . . . . . . . . . . . . . . . . . . . . Total Robot Build Rating . | . . . . . . . . . . . . . . . . . . . . . . . . Part Schematics Acquired 25 | . . . . . 21 . . . . . . . . . . . 4 . . . . . . Parts Built 2 | . . . . . . . . 1 1 . . . . . . . . . . . . . . Authchips . | . . . . . . . . . . . . . . . . . . . . . . . . Time 94 | . . . . . . . . 47 47 . . . . . . . . . . . . . . Total Part Build Rating 10 | . . . . . . . . 5 5 . . . . . . . . . . . . . . Parts Repaired . | . . . . . . . . . . . . . . . . . . . . . . . . Time . | . . . . . . . . . . . . . . . . . . . . . . . . Parts Recycled . | . . . . . . . . . . . . . . . . . . . . . . . . Recycled Matter . | . . . . . . . . . . . . . . . . . . . . . . . . Retrieved Matter . | . . . . . . . . . . . . . . . . . . . . . . . . Retrieved Components . | . . . . . . . . . . . . . . . . . . . . . . . . Parts Scanalyzed 1 | . . . 1 . . . . . . . . . . . . . . . . . . . . Part Schematics Acquired . | . . . . . . . . . . . . . . . . . . . . . . . . Parts Damaged . | . . . . . . . . . . . . . . . . . . . . . . . . Bothacking | -11 -10 -10 -9 -9 -7 -7 -6 -6 -5 -5 -5 -5 -4 -4 -4 -4 -4 -3 -3 -2 -2 -1 -1 ------------ Run | Yrd Mat Min Mat Min Zio Dee Pro Fac Fac Upp Upp War Pro Fac Upp Upp Zhi Pro Res Res Tes Acc Com Used RIF Installer . | . . . . . . . . . . . . . . . . . . . . . . . . Robots Hacked 4 | . . . . . . . . . . . . . . . . . . . . . . 1 3 Non-combat . | . . . . . . . . . . . . . . . . . . . . . . . . Combat 4 | . . . . . . . . . . . . . . . . . . . . . . 1 3 Robot Hacks Applied . | . . . . . . . . . . . . . . . . . . . . . . . . Relay Couplers Released . | . . . . . . . . . . . . . . . . . . . . . . . . Fabnet Peak Effective % 6 | . . . . . . . . . . . . . . . . . . . . . . 6 6 Autooverrided 4 | . . . . . . . . . . . . . . . . . . . . . . 1 3 Robots Rewired 4 | . . . . . . . . . . . . . 2 . 2 . . . . . . . . Allies Hacked . | . . . . . . . . . . . . . . . . . . . . . . . . Hacks Repelled . | . . . . . . . . . . . . . . . . . . . . . . . . Allies | -11 -10 -10 -9 -9 -7 -7 -6 -6 -5 -5 -5 -5 -4 -4 -4 -4 -4 -3 -3 -2 -2 -1 -1 -------- Run | Yrd Mat Min Mat Min Zio Dee Pro Fac Fac Upp Upp War Pro Fac Upp Upp Zhi Pro Res Res Tes Acc Com Total Allies 24 | . . 1 . . 11 1 . . . . . . 2 . 2 . . . . . . 4 3 Largest Group 11 | . . 1 1 . 11 8 4 . . . . . 2 . 2 2 . . . . . 4 1 Highest-Rated Group 437 | . . 31 31 . 359 324 212 . . . . . 96 . 78 78 . . . . . 437 219 Highest-Rated Ally 219 | . . 31 31 . 40 119 119 . . . . . 49 . 48 48 . . . . . 135 219 Total Orders 70 | . . . . . . . . 5 12 . . . 6 1 14 9 . 13 2 1 3 3 1 STAY 4 | . . . . . . . . . . . . . . . 2 2 . . . . . . . FOLLOW 4 | . . . . . . . . . . . . . . . 2 2 . . . . . . . EXPLORE 30 | . . . . . . . . 5 9 . . . 2 . 5 2 . 7 . . . . . RETURN 32 | . . . . . . . . . 3 . . . 4 1 5 3 . 6 2 1 3 3 1 Ally Attacks 346 | . . . 12 . . 117 13 . . . . . 32 3 31 27 . 17 4 3 20 61 6 Total Damage 21760 | . . . 190 . . 3296 112 . . . . . 3463 294 3120 2163 . 1608 790 437 2066 3689 532 Kills 119 | . . . 2 . . 20 1 . . . . . 19 1 17 13 . 12 3 2 7 19 3 Allies Corrupted 1 | . . . . . . . . . . . . . 1 . . . . . . . . . . Allies Melted . | . . . . . . . . . . . . . . . . . . . . . . . . Intel | -11 -10 -10 -9 -9 -7 -7 -6 -6 -5 -5 -5 -5 -4 -4 -4 -4 -4 -3 -3 -2 -2 -1 -1 ------- Run | Yrd Mat Min Mat Min Zio Dee Pro Fac Fac Upp Upp War Pro Fac Upp Upp Zhi Pro Res Res Tes Acc Com Robot Analysis Total 4 | . . . . . . . . . . . . . . . . . 4 . . . . . . Derelict Logs Recovered 10 | . . . . 1 1 . . . . 1 . . 2 . 3 2 . . . . . . . Drone Launches 48 | . . . . . . . . 7 12 . . . 4 1 5 3 . 6 2 1 3 3 1 Drone Recoveries 31 | . . . . . . . . . 3 . . . 4 1 5 3 . 6 2 1 3 3 . Exploration | -11 -10 -10 -9 -9 -7 -7 -6 -6 -5 -5 -5 -5 -4 -4 -4 -4 -4 -3 -3 -2 -2 -1 -1 ------------- Run | Yrd Mat Min Mat Min Zio Dee Pro Fac Fac Upp Upp War Pro Fac Upp Upp Zhi Pro Res Res Tes Acc Com Turns Passed 15860 | 76 295 161 480 690 1852 792 660 299 519 1397 1088 942 1316 53 1365 1145 326 780 229 106 644 289 356 Spaces Moved 9412 | 45 193 99 315 539 1419 575 528 166 319 966 502 569 538 24 554 454 193 319 169 91 414 210 211 Core 27 | 10 . . . . . . . . . . . . . . . . . . . . . . 17 Treads . | . . . . . . . . . . . . . . . . . . . . . . . . Legs 8858 | 35 193 99 315 539 1419 575 528 166 319 966 396 252 434 24 554 454 193 319 169 91 414 210 194 Wheels 527 | . . . . . . . . . . . 106 317 104 . . . . . . . . . . Hover . | . . . . . . . . . . . . . . . . . . . . . . . . Flight . | . . . . . . . . . . . . . . . . . . . . . . . . Fastest Speed 50 | 50 120 120 120 120 120 110 110 112 112 115 116 115 175 180 183 183 113 114 114 114 114 116 50 Average Speed 132 | 122 120 120 120 120 120 125 110 112 114 125 124 145 182 181 183 183 151 114 114 114 114 116 110 Slowest Speed 200 | 190 120 120 120 120 120 190 110 112 120 200 196 185 190 183 183 183 185 116 116 114 118 116 120 Overloaded Moves . | . . . . . . . . . . . . . . . . . . . . . . . . Propulsion Burnouts . | . . . . . . . . . . . . . . . . . . . . . . . . Robots Hopped . | . . . . . . . . . . . . . . . . . . . . . . . . Cave-ins Triggered . | . . . . . . . . . . . . . . . . . . . . . . . . Exploration Rate (%) 51 | 4 54 25 40 98 92 68 68 9 19 91 51 88 98 1 98 98 61 98 5 3 47 9 14 Regions Visited 23 Branch Regions 15 Pre-discovered Areas 8 | . 1 . 1 . 1 . . . . . . . 1 . 1 . 3 . . . . . . Known Exits Taken 6 | . 1 . 1 . 1 . . . 1 . . . . . . . . . . . 1 1 . Unknown Exits Taken 17 | 1 . 1 . 1 . 1 1 1 . 1 1 1 1 1 1 1 1 1 1 1 . . . Scrap Searched 28 | . . 1 . 1 5 . 3 . . 5 1 . 1 . 3 4 . 4 . . . . . Spaces Dug 62 | . . . . . . 44 . 5 1 8 . . . . . 1 . . . . . . 3 Terrain Destroyed 323 | . 2 . . . . 60 55 7 35 149 4 . 2 . . 1 . . . . 2 . 6 Melee 4 | . . . . . . . . . 1 . . . . . . 1 . . . . . . 2 Projectile 22 | . . . . . . 1 . 7 1 1 4 . 2 . . . . . . . 2 . 4 AOE 296 | . 2 . . . . 59 55 . 33 147 . . . . . . . . . . . . . Terrain Rammed . | . . . . . . . . . . . . . . . . . . . . . . . . Walls Destroyed . | . . . . . . . . . . . . . . . . . . . . . . . . Machines Disabled . | . . . . . . . . . . . . . . . . . . . . . . . . Actions | -11 -10 -10 -9 -9 -7 -7 -6 -6 -5 -5 -5 -5 -4 -4 -4 -4 -4 -3 -3 -2 -2 -1 -1 --------- Run | Yrd Mat Min Mat Min Zio Dee Pro Fac Fac Upp Upp War Pro Fac Upp Upp Zhi Pro Res Res Tes Acc Com Total 12266 | 60 232 123 383 582 1498 639 567 262 408 1077 919 673 854 33 907 762 218 737 202 93 510 253 274 Wait 2068 | . 11 5 21 37 19 5 . 61 15 40 376 66 251 6 332 305 . 413 23 1 36 36 9 Move 9389 | 44 192 98 314 538 1418 574 527 165 318 965 501 568 537 23 553 453 192 318 168 90 413 209 211 Hop . | . . . . . . . . . . . . . . . . . . . . . . . . Pick Up 87 | 7 3 3 9 2 8 3 5 10 9 6 2 3 1 1 . . 1 1 5 . 3 4 1 Fast Attach 74 | 7 . 2 3 . . 19 3 . 2 6 2 4 1 . 1 . 8 1 . . 6 . 9 Attach 42 | . . 1 2 . . . 2 7 6 4 3 . . 2 . . . . 2 2 . 2 9 Detach 5 | . . . . . . 1 1 . 1 . . 1 . . . . . . . . 1 . . Swap 72 | 1 . . 4 2 6 6 4 4 9 2 4 5 7 1 3 . 2 1 3 . 7 1 . Drop 125 | . 2 2 11 3 9 24 5 4 8 5 3 17 4 . 4 . 10 3 1 . 9 . 1 Fire 203 | 1 13 12 19 . . 7 7 10 27 47 26 . 5 . . . . . . . 7 1 21 Melee 59 | . . . . . 1 . 13 1 13 2 1 . 5 . 1 4 5 . . . 1 . 12 Ram . | . . . . . . . . . . . . . . . . . . . . . . . . Kick . | . . . . . . . . . . . . . . . . . . . . . . . . Crush . | . . . . . . . . . . . . . . . . . . . . . . . . Escape Stasis . | . . . . . . . . . . . . . . . . . . . . . . . . Rewire 67 | . 11 . . . . . . . . . . . 43 . 13 . . . . . . . . Trap 1 | . . . . . . . . . . . 1 . . . . . . . . . . . . Miscellaneous 74 | . . . . . 37 . . . . . . 9 . . . . . . . . 27 . 1 Route ------- -11/Scrapyard -10/Materials (discovered 4 exits: *Mat x2 / *Min x2) -10/Mines (discovered 2 exits: *Mat x2) -9/Materials (discovered 3 exits: [*Mat] / *Min x2) -9/Mines (discovered 4 exits: [*Mat x2] / [*Exi] / *Zio) -7/Zion (discovered 2 exits: *Dee / *Pro) -7/Deep Caves -6/Proximity Caves -6/Factory -5/Factory (discovered 4 exits: *Upp x2 / Ext x2) -5/Upper Caves -5/Upper Caves (discovered 2 exits: [*Fac] / *War) -5/Warlord -4/Proximity Caves -4/Factory -4/Upper Caves -4/Upper Caves (discovered 2 exits: *Res / *Zhi) -4/Zhirov -3/Proximity Caves -3/Research -2/Research -2/Testing -1/Access (discovered 2 exits: Sur / *Com) -1/Command History --------- Turn | Location | Event 20 | -11/Scrapyard | Discovered new exit (range 15) 77 | -11/Scrapyard | Entered Materials 116 | -10/Materials | Discovered new exit (range 16) 231 | -10/Materials | Identified exit to Mines 302 | -10/Materials | Build established: Mutant 368 | -10/Materials | Discovered new exit (range 10) 372 | -10/Materials | Entered Mines 423 | -10/Mines | Lost 3 parts (1p2w) 508 | -10/Mines | Discovered new exit (range 9) 522 | -10/Mines | Received a Mining Laser from a helpful Derelict 522 | -10/Mines | Discovered new exit (range 6) 533 | -10/Mines | Entered Materials 533 | -9/Materials | Accompanied by 1 ally 533 | -9/Materials | Evolved 2 slots: Propulsion x1, Utility x1 721 | -9/Materials | Discovered new exit (range 3) 836 | -9/Materials | Build established: Scavenger-Mutant 914 | -9/Materials | Identified exit to Mines 1013 | -9/Materials | Entered Mines 1139 | -9/Mines | A Derelict revealed a hidden shortcut to a safe place 1229 | -9/Mines | Discovered new exit (range 11) 1464 | -9/Mines | Discovered new exit (range 3) 1562 | -9/Mines | Deemed a non-threat by the Exiles lab entrance 1562 | -9/Mines | Discovered new exit (range 5) 1616 | -9/Mines | Found the Drone Emporium 1622 | -9/Mines | Found Prototype Device 1703 | -9/Mines | Entered Zion 1721 | -7/Zion | Found CR-A16's Pointy Stick 1794 | -7/Zion | Identified exit to Proximity Caves 1976 | -7/Zion | Received a hallucinogenic algorithm 2114 | -7/Zion | Identified exit to Deep Caves 2342 | -7/Zion | Learned location of Quarantine (-3) 2537 | -7/Zion | Given A8's code to call for help 3081 | -7/Zion | Gained Derelict followers 3243 | -7/Zion | Imprinted 3245 | -7/Zion | Declared Zion's savior 3331 | -7/Zion | Gained Derelict followers 3551 | -7/Zion | Saw the warning signs outside the Deep Caves entrance 3555 | -7/Zion | Entered Deep Caves 3555 | -7/Deep Caves | Accompanied by 11 allies 3557 | -7/Deep Caves | Met 5H-AD0 3728 | -7/Deep Caves | Z-Facility disabled 3749 | -7/Deep Caves | Attacked by Z-Imprinter 3756 | -7/Deep Caves | Allies destroyed Z-Imprinter 3806 | -7/Deep Caves | Found Prototype Protection 3806 | -7/Deep Caves | Identified Zio. Weapon Casing 4285 | -7/Deep Caves | Discovered new exit (range 12) 4305 | -7/Deep Caves | Build established: Mutant 4347 | -7/Deep Caves | Entered Proximity Caves 4347 | -6/Proximity Caves | Accompanied by 4 allies (5H-AD0) 4352 | -6/Proximity Caves | Thanked by 5H-AD0 4464 | -6/Proximity Caves | Spotter reported a threat 4777 | -6/Proximity Caves | Discovered new exit (range 11) 4781 | -6/Proximity Caves | Spotted B-75 Beast 4833 | -6/Proximity Caves | Lost 3 allies 4856 | -6/Proximity Caves | Revealed the true nature of CR-A16's Pointy Stick 4856 | -6/Proximity Caves | Destroyed B-75 Beast 5007 | -6/Proximity Caves | Entered Factory 5007 | -6/Factory | Evolved 6 slots: Power x1, Propulsion x1, Utility x4 5007 | -6/Factory | Identified Decoy Drone Bay 5181 | -6/Factory | Discovered new exit (range 30) 5235 | -6/Factory | Fabricated Imp. Hacking Suite (x1) 5306 | -6/Factory | Entered another Factory area 5306 | -5/Factory | Evolved 2 slots: Utility x1, Weapon x1 5761 | -5/Factory | Identified exit to Upper Caves 5761 | -5/Factory | Identified exit to Extension 5802 | -5/Factory | Fabricated Imp. Hacking Suite? 5825 | -5/Factory | Entered Upper Caves 5893 | -5/Upper Caves | Build established: Hacker-Mutant 6173 | -5/Upper Caves | Learned Factory stockpile data 6819 | -5/Upper Caves | Attracted the attention of an 0b10 base 6856 | -5/Upper Caves | Destroyed 7 combat bots 7035 | -5/Upper Caves | Attracted the attention of an 0b10 checkpoint 7153 | -5/Upper Caves | Discovered new exit (range 13) 7222 | -5/Upper Caves | Entered another Upper Caves area 7225 | -5/Upper Caves | Encountered a Warlord checkpoint 7265 | -5/Upper Caves | Attracted the attention of an 0b10 checkpoint 7842 | -5/Upper Caves | Discovered new exit (range 6) 7903 | -5/Upper Caves | Spotted B-75 Beast 7916 | -5/Upper Caves | Destroyed B-75 Beast 8272 | -5/Upper Caves | Discovered new exit (range 6) 8310 | -5/Upper Caves | Entered Warlord 8369 | -5/Warlord | System corruption cleaned by Quarantine Array 8593 | -5/Warlord | Build established: Hacker-Tank 8613 | -5/Warlord | Found Prototype Device 8613 | -5/Warlord | Identified Wardrone Bay 8794 | -5/Warlord | Received a Watcher feed algorithm from an ecstatic Tinkerer 8894 | -5/Warlord | Build established: Scavenger-Gunner 8911 | -5/Warlord | Rebuked by Warlord 8936 | -5/Warlord | Warlord's base attacked by MAIN.C 8965 | -5/Warlord | Found Prototype Reactor 8965 | -5/Warlord | Identified Vortex Chain Reactor 8974 | -5/Warlord | Found Prototype Hackware 9205 | -5/Warlord | Opened side exit 9240 | -5/Warlord | Discovered new exit (range 9) 9250 | -5/Warlord | Build established: Gunner 9252 | -5/Warlord | Entered Proximity Caves 9252 | -4/Proximity Caves | Spotted B-86 Titan 9276 | -4/Proximity Caves | Destroyed B-86 Titan 9565 | -4/Proximity Caves | Build established: Mutant 9645 | -4/Proximity Caves | Learned Research security intel 9900 | -4/Proximity Caves | Attracted the attention of an 0b10 outpost 10080 | -4/Proximity Caves | Discovered new exit (range 7) 10568 | -4/Proximity Caves | Entered Factory 10568 | -4/Factory | Evolved 2 slots: Propulsion x1, Utility x1 10569 | -4/Factory | Identified Ghost Barrier 10599 | -4/Factory | Discovered new exit (range 6) 10621 | -4/Factory | Entered Upper Caves 10877 | -4/Upper Caves | Build established: Hacker-Mutant 11086 | -4/Upper Caves | Discovered new exit (range 70) 11174 | -4/Upper Caves | Learned location of Armory (-4) 11181 | -4/Upper Caves | Learned 8 Research zone layouts 11389 | -4/Upper Caves | Spotted B-86 Titan 11401 | -4/Upper Caves | Destroyed B-86 Titan 11986 | -4/Upper Caves | Entered another Upper Caves area 11986 | -4/Upper Caves | Accompanied by 2 allies 12019 | -4/Upper Caves | Learned Research garrison access intel 12061 | -4/Upper Caves | Discovered new exit (range 38) 12255 | -4/Upper Caves | Discovered new exit (range 143) 12419 | -4/Upper Caves | Learned Research security intel 12475 | -4/Upper Caves | Encountered a Warlord checkpoint 12864 | -4/Upper Caves | Attracted the attention of an 0b10 base 12948 | -4/Upper Caves | Learned Extension emergency access door positions 13131 | -4/Upper Caves | Entered Zhirov 13131 | -4/Zhirov | Discovered new exit (range 3) 13164 | -4/Zhirov | Met Zhirov 13197 | -4/Zhirov | Learned location of Testing (-2) 13197 | -4/Zhirov | Learned location of Command (-1) 13225 | -4/Zhirov | Zhirov requested help retrieving the SGEMP Prototype 13267 | -4/Zhirov | Found Alien Artifact 13267 | -4/Zhirov | Identified Integrated Reactor 13267 | -4/Zhirov | Installed Integrated Reactor, increased core energy generation (+10) 13297 | -4/Zhirov | Found Alien Artifact 13457 | -4/Zhirov | Entered Proximity Caves 13805 | -3/Proximity Caves | Discovered new exit (range 102) 14237 | -3/Proximity Caves | Entered Research 14237 | -3/Research | Evolved 2 slots: Utility x2 14240 | -3/Research | Loaded intel: 4 garrison access locations 14430 | -3/Research | Discovered new exit (range 13) 14466 | -3/Research | Entered another Research area 14466 | -2/Research | Evolved 2 slots: Utility x2 14555 | -2/Research | Discovered new exit (range 15) 14572 | -2/Research | Entered Testing 14800 | -2/Testing | Found Prototype Device 14800 | -2/Testing | Identified AEGIS Remote Shield 14954 | -2/Testing | Build established: Hacker-Tank 14993 | -2/Testing | Spotted Striker 14993 | -2/Testing | Spotted Striker 15000 | -2/Testing | Spotted Alpha 7 15004 | -2/Testing | Allies destroyed Striker 15013 | -2/Testing | Garrison activated, responded to threat 15018 | -2/Testing | Allies destroyed Alpha 7 15069 | -2/Testing | Stole the SGEMP Prototype 15077 | -2/Testing | Found Prototype Ballistic Gun 15077 | -2/Testing | Identified Multirail 15152 | -2/Testing | Identified exit to Access 15216 | -2/Testing | Entered Access 15216 | -1/Access | Evolved 2 slots: Utility x2 15217 | -1/Access | Delivered the SGEMP Prototype to Zhirov 15217 | -1/Access | Zhirov transferred Access data 15218 | -1/Access | Loaded intel: 110 machine locations 15218 | -1/Access | Loaded intel: 103 trap records 15218 | -1/Access | Identified exit to Surface 15218 | -1/Access | Discovered exit to Surface (range 52) 15218 | -1/Access | Identified exit to Command 15218 | -1/Access | Discovered exit to Command (range 131) 15466 | -1/Access | First assault squad dispatched 15505 | -1/Access | Entered Command 15505 | -1/Command | Accompanied by 3 allies (incl. Zhirov, Perun, Svarog) 15507 | -1/Command | Build established: Hacker-Mutant 15509 | -1/Command | Zhirov warped through subspace 15577 | -1/Command | Identified Transdimensional Reconstructor 15577 | -1/Command | Failed to warp due to unstable space 15721 | -1/Command | Lost 3 parts (3u) 15802 | -1/Command | First assault squad dispatched 15818 | -1/Command | System corruption reached 10% 15840 | -1/Command | Spotted M Guard 15840 | -1/Command | Spotted M Guard 15841 | -1/Command | Spotted Combat Programmer 15841 | -1/Command | Spotted Combat Programmer 15849 | -1/Command | Core integrity fell below 50% 15857 | -1/Command | System corruption reached 30% 15859 | -1/Command | Core integrity fell below 20% 15861 | -1/Command | Destroyed by M Guard with Advanced Micro-nuke Launcher Last Messages --------------- 15843_ Penetrated by EMDS Slug. 15844_ The unstable cave ceiling collapses. 15844_ Penetrated by EMDS Slug. 15845_ EMDS Slug penetrates Earth. 15846_ Penetrated by EMDS Slug. 15848_ The unstable cave ceiling collapses. 15848_ Penetrated by EMDS Slug. 15848_ Ghost Barrier destroyed. 15849_ Hdn. Centrium Leg destroyed. 15850_ EMDS Slug penetrates Reinforced Barrier. 15853_ Dismantling Sealed Barrier with Plasma Cutter. 15855_ Plasma Cutter destroyed. 15855_ Imp. Hacking Suite destroyed. 15856_ Penetrated by EMDS Slug. 15858_ System corrupted: Enh. Nova Cannon failed to cycle. 15858_ Enh. Nova Cannon destroyed. 15859_ Penetrated by EMDS Slug. [Achievement: This Is Interesting...] Map ----- +----------------------------------------------------+ | ?????????????????????????????????????????????????? | | ?????????????????????????????????????????????????? | | ?????????????????????????????????????????????????? | | ?????????????????????????????????????????????????? | | ?????????????????????????????????????????????????? | | ?????????????????????????????????????????????????? | | ?????????????????????????????????????????????????? | | ?????????????????????????????????????????????????? | | ?????????????????????????????????????????????????? | | ??????????????????????????????? ???????????????? | | ??????????????????????????????# ???????????????? | | ??????????????????????????????# ???????????????? | | ??????????????????????????????# #??????????????? | | ??????????????????????????????# #??????????????? | | ??????????????????????????????# #??????????????? | | ??????????????????????????????# #??????????????? | | ??????????????????????????????# #??????????????? | | ??????????????????????????????# #??????????????? | | ??????????????????????????????# #??????????????? | | ??????????????????????????????# #??????????????? | | ??????????????????????????????# #??????????????? | | ??????????????????????????????# #??##??????????? | | ????????????????????????????### ## ######?????? | | ????????????????????????????# ###???? | | ???????????????????????#"""## ##?## | | ???????????????????????# @ # #?# | | ???????????????????????# pY## ### | | ???????????????????????#ppY p | | ???????????????????????# p | | ???????????????????????# *! | | ???????????????????????# ==! | | ???????????????????????# !!%! | | ???????????????????????# ## # ###= | | ???????????????????????######## # #?# | | ??????????????????????????????###### # #?## | | ???????????????????????????????????## ## ###??? | | ????????????????????????????????????######?##????? | | ?????????????????????????????????????????????????? | | ?????????????????????????????????????????????????? | | ?????????????????????????????????????????????????? | | ?????????????????????????????????????????????????? | | ?????????????????????????????????????????????????? | | ?????????????????????????????????????????????????? | | ?????????????????????????????????????????????????? | | ?????????????????????????????????????????????????? | | ?????????????????????????????????????????????????? | | ?????????????????????????????????????????????????? | | ?????????????????????????????????????????????????? | | ?????????????????????????????????????????????????? | | ?????????????????????????????????????????????????? | +----------------------------------------------------+ Best States ------------- Heat Dissipation 71 Energy Generation 65 Energy Capacity 750 Matter Stores 300 Matter Capacity 600 Sight Range 22 Terrain Scan Density 10 Jamming Range 12 Armor Coverage 825 Resistance: TH 15 Core Shielding 40 Propulsion Shielding 66 Utility Shielding 66 Phase Shifting 15 Evasion (%) 70 Recoil Reduction 1 Offensive Hacking 26 Defensive Hacking 32 Item Schematics ----------------- Imp. Hacking Suite | -7/Zion | Archive Kinecellerator | -7/Zion | Archive Component Analysis Suite | -7/Zion | Archive Force Field | -7/Zion | Archive Variable Charge Gun | -7/Zion | Archive Coolant Injector | -7/Zion | Archive Thermic Laser | -7/Zion | Archive Gatling Laser | -7/Zion | Archive Lrn. Missile Launcher | -7/Zion | Archive Mak. Leg | -7/Zion | Archive Mak. Shrapnel Gun | -7/Zion | Archive Imp. Reaction Control System | -7/Zion | Archive Flak Gun | -7/Zion | Archive Imp. Thermal Shield | -7/Zion | Archive Beamcaster | -7/Zion | Free Riot Gun | -7/Zion | Free Battle Rifle | -7/Zion | Free Barrage Gun | -7/Zion | Free Hvy. Battle Rifle | -7/Zion | Free Battle Cannon | -7/Zion | Free Flamer | -7/Zion | Free Assault Drone Bay | -4/Zhirov | Free Exp. Heat Sink | -4/Zhirov | Free Exp. Optical Array | -4/Zhirov | Free Imp. Arc Thrower | -4/Zhirov | Free Robot Schematics ------------------ G-34 Mercenary | -10/Materials | Hacked R-06 Scavenger | -7/Zion | Archive K-01 Serf | -7/Zion | Archive T-07 Excavator | -7/Zion | Archive H-88 Terminator | -7/Zion | Archive Fabricated ------------ Imp. Hacking Suite | x1 | -6/Factory Imp. Hacking Suite | x1 | -5/Factory Alien Tech Used ----------------- Integrated Reactor Transdimensional Reconstructor Achievements -------------- Adventurer Are We The Baddies? Can't Touch This Explorer Generalissimo Just What I Needed Ooh, Shiny! Signs Are For Wimps Special Delivery The Science Guy This Is Interesting... Ultimate Loadout Challenges ------------ None Game ------ Seed DisposableLightPropulsion Manual? 0 Play Time 03:36:21 Cumulative 30.4 hours Start 2024.05.20 @ 15:53:10 End 2024.05.21 @ 22:09:56 Sessions 5 Manual Loads 0 Difficulty Rogue Special Mode None Game No. 20 Rogue 20 Adventurer 0 Explorer 0 Win Type - Total 1 Types 1/0/0/0/0/0/0/0/0 Lore% 29 Gallery% 35 Achievement% 35 Wizard Run 0 Options --------- Layout 1 ASCII 0 Keyboard 0 Movement Mouse Keybinds 0 Fullscreen 1 Font 24/Smallcaps Map View 50x35 Zoom Use 0% Tactical HUD 1 Map Filters NONE Filters NONE Steam 0 RUN: f2817a66-b478-4886-a493-1bfc7b0fd5fd